Cogmind - Beta 10.2 @@@ ROGUE MODE // 2020.12.08 @ 21:23:38 Player: Minty Result: Destroyed by D-53 Grenadier with Mini Grenade Launcher Performance ------------- Evolutions (0) 0 Regions Visited (2) 400 Robots Destroyed (8) 40 Value Destroyed (158) 158 Prototype IDs (0) 0 Alien Tech Used (0) 0 Bonus (0) 0 TOTAL SCORE: 598 Bonus ------- None Cogmind --------- Core Integrity 0/250 Matter 300/300 Energy 100/100 System Corruption 0% Temperature Cool (0) Movement Treading (160) Location -10/Mines Parts ------- > --- POWER (1) -------- (None) > --- PROPULSION (2) --- Light Treads > --- UTILITY (2) ------ Large Storage Unit Targeting Computer > --- WEAPON (2) ------- Assault Rifle > --- INVENTORY (10) --- Improved Heat Sink Large Battery (300) Sensor Array Peak State ------------ > --- POWER ------------ Ion Engine > --- PROPULSION ------- Light Treads Light Treads > --- UTILITY ---------- Small Storage Unit Targeting Computer > --- WEAPON ----------- EM Pulse Gun Assault Rifle > --- INVENTORY -------- Sensor Array [Rating: 7] Favorites ----------- Power Ion Engine Engine Ion Engine Propulsion Light Treads Treads Light Treads Utility Small Storage Unit Storage Small Storage Unit Processor Targeting Computer Weapon Assault Rifle Energy Gun EM Pulse Gun Ballistic Gun Assault Rifle Build | -11 -10 -10 ------- Run | Scr Mat Min Slots Evolved . | . . . Power . | . . . Propulsion . | . . . Utility . | . . . Weapon . | . . . Parts Attached 8 | 6 2 . Power 1 | 1 . . Engine 1 | 1 . . Core . | . . . Reactor . | . . . Propulsion 2 | 2 . . Treads 2 | 2 . . Leg . | . . . Wheel . | . . . Hover . | . . . Flight . | . . . Utility 3 | 1 2 . Device . | . . . Storage 2 | 1 1 . Processor 1 | . 1 . Hackware . | . . . Protection . | . . . Artifact . | . . . Weapon 2 | 2 . . Energy Gun 1 | 1 . . Energy Cannon . | . . . Ballistic Gun 1 | 1 . . Ballistic Cannon . | . . . Launcher . | . . . Special Weapon . | . . . Impact Weapon . | . . . Slashing Weapon . | . . . Piercing Weapon . | . . . Special Melee Weapon . | . . . Unidentified Prototypes . | . . . Parts Lost 3 | . . 3 Power 1 | . . 1 Propulsion 1 | . . 1 Utility . | . . . Weapon 1 | . . 1 Highest Loss Streak 3 | . . 3 Average Slot Usage (%) 92 | . 92 93 Engine 13 | . 14 12 Treads 27 | . 28 26 Storage 14 | . 14 14 Processor 9 | . 7 14 Energy Gun 12 | . 14 10 Ballistic Gun 14 | . 14 14 Naked Turns . | . . . Heaviest Build 25 | 13 25 25 Greatest Support 40 | 40 40 40 Greatest Overweight (x) . | . . . Average Overweight (x) . | . . . Largest Inventory Capacity 10 | 6 10 10 Average Capacity 7 | 4 6 10 Most Carried 3 | . 2 3 Average Carried 1 | . . 2 Final Capacity 10 | 6 10 10 Final Carried 3 | . 2 3 Class Distribution -------------------- 100% | Mutant Dominant Class ---------------- Mutant | -10/Materials Mutant | -10/Mines Resources | -11 -10 -10 ----------- Run | Scr Mat Min Matter Collected 345 | 263 3 79 Remotely . | . . . Salvage Created 265 | 62 58 145 Parts 11 | 2 5 4 Haulers Intercepted . | . . . Recyclers Shooed . | . . . Parts Field Recycled . | . . . Retrieved Matter . | . . . Parts Self-Destructed . | . . . Prevented . | . . . Kills | -11 -10 -10 ------- Run | Scr Mat Min Combat Hostiles Destroyed 5 | . 2 3 Melee 1 | . . 1 Guns 4 | . 2 2 Classes Destroyed 5 | 1 2 2 Worker 1 | . . 1 Recycler 1 | 1 . . Watcher 1 | . 1 . Swarmer 2 | . 2 . Grunt 3 | . . 3 Best Kill Streak 2 | 1 2 2 Combat Bots Only 2 | . 2 2 Max Kills in Single Turn 1 | 1 1 1 Gunslinging . | . . . Exploded . | . . . Melee 1 | . . 1 Uniques/NPCs Destroyed . | . . . Combat | -11 -10 -10 -------- Run | Scr Mat Min Damage Taken 759 | 4 69 686 Core 270 | . 21 249 Absorbed by Shields . | . . . Core Remaining (%) 100 | 100 . . Volleys Fired 27 | 1 14 12 Largest 2 | 2 2 2 Hottest 60 | 60 60 60 Shots Fired 53 | 2 28 23 Gun 53 | 2 28 23 Cannon . | . . . Launcher . | . . . Special . | . . . Kinetic 27 | 1 14 12 Thermal . | . . . Explosive . | . . . Electromagnetic 26 | 1 14 11 Robot Hit Streak 7 | 1 3 7 Robot Miss Streak 3 | 1 3 1 Penetration Max . | . . . Secondary Targets . | . . . Shots Hit Robots 28 | 1 10 17 Core Hits 11 | 1 5 5 Critical Hits . | . . . Critical Kills . | . . . Critical Parts Destroyed . | . . . Melee Attacks . | . . . Impact . | . . . Slashing . | . . . Piercing . | . . . Sneak Attacks . | . . . Combat Hostiles . | . . . Follow-up Attacks . | . . . Damage Inflicted 429 | 63 138 228 Guns 374 | 15 135 224 Cannons . | . . . Explosions 48 | 48 . . Melee . | . . . Ramming 7 | . 3 4 Kinetic 130 | . 31 99 Thermal 48 | 48 . . Explosive . | . . . Electromagnetic 244 | 15 104 125 Impact . | . . . Slashing . | . . . Piercing . | . . . Highest Corruption . | . . . Average Corruption . | . . . Corruption Purged . | . . . Overload Shots . | . . . Overflow Damage . | . . . Projectiles . | . . . Explosions . | . . . Melee . | . . . Knockbacks . | . . . Impact . | . . . Kinetic . | . . . Secondary . | . . . Self-Inflicted Damage 5 | 5 . . Shots 1 | 1 . . Rammed 4 | . 1 3 Targets Rammed 6 | . 1 5 Kicked . | . . . Crushed 2 | . . 2 Highest Temperature 75 | 12 . 75 Average Temperature 30 | 12 . 32 Received Heat Transfer 170 | . . 170 Siege Activations . | . . . Robots Corrupted . | . . . Combat Hostiles . | . . . Parts Fried 1 | . 1 . Impact Corruptions . | . . . Robots Melted . | . . . Combat Hostiles . | . . . Parts Melted . | . . . Heat Transferred . | . . . Parts Sabotaged . | . . . Parts Stolen . | . . . Parts Stripped . | . . . Power Chain Reactions 1 | 1 . . Missiles Intercepted . | . . . Alert | -11 -10 -10 ------- Run | Scr Mat Min Peak Influence 139 | 5 102 139 Initial 39 | . 3 39 Average 56 | . 53 110 Maximum Alert Level . | . . . Low Security (%) 100 | 100 100 100 Level 1 . | . . . Level 2 . | . . . Level 3 . | . . . Level 4 . | . . . Level 5 . | . . . High Security . | . . . Max Security . | . . . Squads Dispatched 2 | . 1 1 Investigation 1 | . . 1 Extermination . | . . . Reinforcement 1 | . 1 . Assault . | . . . Garrison . | . . . Intercept . | . . . Construction Impeded . | . . . Haulers Reinforced . | . . . Stealth | -11 -10 -10 --------- Run | Scr Mat Min Distress Signals . | . . . Communications Jammed . | . . . Distress Signals . | . . . Times Spotted 28 | . 7 21 Peak Tracking Total 15 | . 2 15 Tactical Retreats . | . . . Traps | -11 -10 -10 ------- Run | Scr Mat Min Traps Triggered . | . . . Indirectly . | . . . Trap Hack Attempts . | . . . Triggered . | . . . Disarmed . | . . . Reprogrammed . | . . . Reused . | . . . Traps Extracted . | . . . Installed . | . . . Triggered . | . . . Machines | -11 -10 -10 ---------- Run | Scr Mat Min Machines Disabled . | . . . Max in Single Turn . | . . . Machines Sabotaged . | . . . Garrisons Compromised . | . . . Overloaded Fab Kills . | . . . Fab Network Shutdowns . | . . . Hacking | -11 -10 -10 --------- Run | Scr Mat Min Machines Accessed 3 | . 2 1 Terminals 2 | . 1 1 Fabricators . | . . . Repair Stations . | . . . Recycling Units 1 | . 1 . Scanalyzers . | . . . Garrison Access . | . . . Total Hacks 9 | . 5 4 Successful 5 | . 4 1 Failed 4 | . 1 3 Catastrophic . | . . . Database Lockouts . | . . . Manual 7 | . 3 4 Terminals 7 | . 3 4 Fabricators . | . . . Repair Stations . | . . . Recycling Units 2 | . 2 . Scanalyzers . | . . . Garrison Access . | . . . Terminal Hacks 3 | . 2 1 Branch Access Points 1 | . 1 . Recall Reinforcements 1 | . 1 . Zone Layout 1 | . . 1 Fabricator Hacks . | . . . Repair Station Hacks . | . . . Recycling Unit Hacks 2 | . 2 . Report Inventory 1 | . 1 . Retrieve Components 1 | . 1 . Scanalyzer . | . . . Garrison Access Hacks . | . . . Unauthorized Hacks . | . . . Terminals . | . . . Fabricators . | . . . Repair Stations . | . . . Recycling Units . | . . . Scanalyzers . | . . . Garrison Access . | . . . Data Cores Recovered . | . . . Used . | . . . Hacking Detections 3 | . 2 1 Full Trace Events 1 | . . 1 Feedback Events . | . . . Feedback Blocked . | . . . Robot Schematics Acquired . | . . . Robots Built . | . . . Matter . | . . . Time . | . . . Total Robot Build Rating . | . . . Part Schematics Acquired . | . . . Parts Built . | . . . Matter . | . . . Time . | . . . Total Part Build Rating . | . . . Parts Repaired . | . . . Time . | . . . Parts Recycled . | . . . Recycled Matter . | . . . Retrieved Matter . | . . . Retrieved Components 3 | . 3 . Parts Scanalyzed . | . . . Part Schematics Acquired . | . . . Parts Damaged . | . . . Bothacking | -11 -10 -10 ------------ Run | Scr Mat Min Used RIF Installer . | . . . Robots Hacked . | . . . Non-combat . | . . . Combat . | . . . Robot Hacks Applied . | . . . Relay Couplers Released . | . . . Robots Rewired . | . . . Allies Hacked . | . . . Hacks Repelled . | . . . Allies | -11 -10 -10 -------- Run | Scr Mat Min Total Allies . | . . . Largest Group . | . . . Highest-Rated Group . | . . . Highest-Rated Ally . | . . . Total Orders . | . . . Ally Attacks . | . . . Total Damage . | . . . Kills . | . . . Allies Corrupted . | . . . Allies Melted . | . . . Intel | -11 -10 -10 ------- Run | Scr Mat Min Robot Analysis Total . | . . . Derelict Logs Recovered . | . . . Drone Launches . | . . . Drone Recoveries . | . . . Exploration | -11 -10 -10 ------------- Run | Scr Mat Min Turns Passed 489 | 89 286 114 Spaces Moved 248 | 55 149 44 Core 9 | 9 . . Treads 239 | 46 149 44 Legs . | . . . Wheels . | . . . Hover . | . . . Flight . | . . . Fastest Speed 50 | 50 160 160 Average Speed 156 | 142 160 160 Slowest Speed 160 | 160 160 160 Overloaded Moves . | . . . Propulsion Burnouts . | . . . Robots Hopped . | . . . Cave-ins Triggered . | . . . Exploration Rate (%) 18 | 5 30 19 Regions Visited 2 Branch Regions 1 Pre-discovered Areas . | . . . Known Exits Taken 1 | . 1 . Unknown Exits Taken 1 | 1 . . Scrap Searched . | . . . Spaces Dug . | . . . Terrain Destroyed . | . . . Melee . | . . . Projectile . | . . . AOE . | . . . Terrain Rammed . | . . . Walls Destroyed . | . . . Machines Disabled . | . . . Actions | -11 -10 -10 --------- Run | Scr Mat Min Total 291 | 61 168 62 Wait . | . . . Move 246 | 54 148 44 Hop . | . . . Pick Up 3 | . 2 1 Fast Attach 7 | 6 1 . Attach . | . . . Detach . | . . . Swap 1 | . 1 . Drop 1 | . 1 . Fire 27 | 1 14 12 Melee . | . . . Ram . | . . . Kick . | . . . Crush 6 | . 1 5 Escape Stasis . | . . . Rewire . | . . . Trap . | . . . Miscellaneous . | . . . Route ------- -11/Scrapyard -10/Materials -10/Mines (discovered 1 exit: [Mat]) History --------- Turn | Location | Event 2 | -11/Scrapyard | Discovered new exit (range 16) 90 | -11/Scrapyard | Entered Materials 250 | -10/Materials | Identified exit to Mines 310 | -10/Materials | Build established: Mutant 376 | -10/Materials | Entered Mines 403 | -10/Mines | Discovered new exit (range 10) 452 | -10/Mines | Assembled infested the area 468 | -10/Mines | Core integrity fell below 50% 490 | -10/Mines | Destroyed by D-53 Grenadier with Mini Grenade Launcher Last Messages --------------- 00461_ U-05 Engineer destroyed. 00462_ K-01 Serf destroyed. 00463_ EM Pulse Gun destroyed. 00464_ as-12075 destroyed. 00467_ D-53 Grenadier unfolds itself. 00469_ as-81651 destroyed. 00469_ as-01551 destroyed. 00469_ as-15280 destroyed. 00470_ as-97383 destroyed. 00470_ as-96522 destroyed. 00470_ as-88349 destroyed. 00470_ as-63010 destroyed. 00472_ as-10804 destroyed. 00472_ as-74141 destroyed. 00472_ as-65686 destroyed. 00473_ as-83777 destroyed. 00473_ as-20620 destroyed. 00475_ as-51957 destroyed. 00485_ Lgt. Treads destroyed. 00485_ Ion Engine destroyed. Map ----- +----------------------------------------------------+ | ?????????????????????????????????????????????????? | | ?????????????????????????????????????????????????? | | ?????????????????????????????????????????????????? | | ?????????????????????????????????????????????????? | | ?????????????????????????????????????????????????? | | ?????????????????????????????????????????????????? | | ?????????????????????????????????????????????????? | | ?????????????????????????????????????????????????? | | ?????????????????????????????????????????????????? | | ?????????????????????????????????????????????????? | | ?????????????????????????????????????????????????? | | ?????????????????????????????????????????????????? | | ?????????????????????????????????????????????????? | | ?????????????????????????????????????????????????? | | ?????????????????????????????????????????????????? | | ?????????????????????????????????????????????????? | | ?????????????????????????????????????????????????? | | ?????????????????????????????????????????? ??????? | | ?????????????????????????????????????????? #?????? | | ?????????????????????????????????????????? #?????? | | ????????????????????????????????????????? ?? ?? | | ???????????????????##?????###???????????? ## #??? | | ????????????????#### ?### ##??????????? ##?? | | ???????????????## # ###???????? #?? | | ???????????????# ##??????? #?? | | ???????????????# @ #??????? ##? | | ??????????????# ###?### #? | | ?????????????# ### #? | | ??????????? d #? | | ??????????? d #? | | ????????????# ### ## #? | | ????????????## ????### ## ## #? | | ?????????????????????###?########### ## ##? | | ???????????????????????????????????#### ##?? | | ?????????????????????????????????????##%= ##??? | | ????????????????????????????????###### #####???? | | ????????????????????????????????# ##???????? | | ????????????????????????????????# #????????? | | ????????????????????????????????# ## " #????????? | | ????????????????????????????????# ##% #????????? | | ?????????????????????????????####!=%[ #????????? | | ?????????????????????????????# ### #????????? | | ?????????????????????????????# ####?## #????????? | | ?????????????????????????????# #?????# #????????? | | ?????????????????????????????# #?????# #####????? | | ?????????????????????????????# #?????# #????? | | ?????????????????????????????# #?????# #????? | | ?????????????????????????????# #?????##### #????? | | ?????????????????????????????# #?????????# #????? | | ?????????????????????????????# #?????????# #????? | +----------------------------------------------------+ Best States ------------- Heat Dissipation 25 Energy Generation 10 Energy Capacity 250 Matter Stores 300 Matter Capacity 300 Sight Range 16 Terrain Scan Density 10 Evasion (%) 40 Targeting Accuracy 5 Recoil Reduction 2 Item Schematics ----------------- None Robot Schematics ------------------ None Fabricated ------------ Nothing Alien Tech Used ----------------- None Achievements -------------- None Challenges ------------ None Game ------ Seed HellfireCoreCharger Manual? 0 Play Time 00:04:08 Cumulative 321.8 hours Start 2020.12.08 @ 21:20:09 End 2020.12.08 @ 21:23:38 Sessions 1 Manual Loads 0 Difficulty Rogue Special Mode None Game No. 191 Rogue 34 Adventurer 52 Explorer 105 Win Type - Total 19 Types 17/0/1/0/0/0/0/1/0 Lore% 62 Gallery% 85 Achievement% 64 Wizard Run 0 Options --------- ASCII 0 Keyboard 0 Movement Mouse Keybinds 0 Fullscreen 2 Font 18/TerminusBold Map View 76x50 Tactical HUD 1 Map Filters NONE Filters NONE Steam 1 RUN: 13cfa508-692a-4685-8442-75ee26e5b0d7